bitfinex-derivatives/quotes_SOLF0:USTF0_20241029
["timestamp","ask_amount","ask_price","bid_price","bid_amount"]
[1730217593265,6.2991,180.76,180.73,2.7669]
[1730217593467,6.2991,180.76,180.68,9.31259157]
[1730217594680,6.2991,180.76,180.66,9.31259157]
[1730217594872,9.31259157,180.75,180.66,9.31259157]
[1730217595069,12.07919157,180.75,180.64,9.31259157]
[1730217595368,9.31259157,180.75,180.69,2.7674]
[1730217595671,9.31259157,180.73,180.69,2.7674]
[1730217595971,9.31259157,180.73,180.7,2.7674]
[1730217596362,5.08,180.73,180.64,9.31259157]
[1730217596567,1.2191,180.76,180.66,9.31259157]
[1730217596777,1.2191,180.76,180.63,7.5603]
[1730217596778,5.08,180.75,180.68,9.31259157]
[1730217597163,5.08,180.78,180.71,9.31259157]
[1730217597376,1.3176,180.8,180.71,9.31259157]
[1730217597574,5.08,180.79,180.71,9.31259157]
[1730217597768,5.08,180.79,180.76,2.7664]
[1730217598168,5.08,180.79,180.71,9.31259157]
[1730217598569,5.08,180.79,180.69,1.3237]
[1730217598964,9.31259157,180.77,180.69,1.3237]
[1730217599367,9.31259157,180.77,180.73,2.7668]
[1730217600584,5.08,180.79,180.73,2.7668]
[1730217601274,5.08,180.79,180.69,1.3237]
[1730217601572,2.7662,180.78,180.65,10.6162]
[1730217601773,5.08,180.79,180.65,5.5362]
[1730217602165,2.7664,180.77,180.72,2.767]
[1730217602380,1.2522,180.76,180.72,2.767]
[1730217603171,4.0187,180.76,180.71,2.7672]
[1730217604380,4.0187,180.76,180.64,1.2423]
[1730217604381,1.2522,180.76,180.64,1.2423]
[1730217607581,5.08,180.75,180.64,1.2423]
[1730217612184,6.3845,180.75,180.64,1.2423]
[1730217612585,1.2522,180.76,180.64,1.2423]
[1730217612779,6.3976,180.8,180.64,1.2423]
[1730217613277,1.3176,180.8,180.64,1.2423]
[1730217613482,1.242,180.81,180.64,1.2423]
[1730217613677,1.242,180.81,180.64,0.2423]
[1730217613876,1.242,180.81,180.64,5.06648088]
[1730217614078,5.08,180.82,180.64,0.2423]
[1730217614276,1.3337,180.86,180.65,1.01716414]
[1730217614480,1.3279,180.94,180.67,16.63]
[1730217614697,3.9299,180.94,180.69,16.63]
[1730217614878,9.0099,180.94,180.7,4.81313998]
[1730217615188,9.0099,180.94,180.71,5.08]
[1730217615389,9.0099,180.94,180.72,59.78]
[1730217615780,9.0099,180.94,180.73,6.3283]
[1730217616982,9.0099,180.94,180.73,1.2483]
[1730217617187,9.0099,180.94,180.74,5.08]
[1730217617383,42.2699,180.94,180.74,5.08]
[1730217617587,25.6399,180.94,180.74,5.08]
[1730217617889,25.6399,180.94,180.73,2.5373]
[1730217618190,25.6399,180.94,180.74,5.08]
[1730217618583,9.0099,180.94,180.74,5.08]
[1730217618780,9.0099,180.94,180.75,1.3193]
[1730217618986,3.9299,180.94,180.75,1.3193]
[1730217619189,5.08,180.93,180.75,1.3193]
[1730217619382,5.08,180.92,180.75,1.3193]
[1730217620084,5.08,180.92,180.76,5.08]
[1730217622282,2.602,180.94,180.76,5.08]
[1730217622486,1.268,180.98,180.76,5.08]
[1730217623887,5.08,180.99,180.76,5.08]
[1730217624495,1.3047,181.03,180.76,5.08]
[1730217624796,5.08,181.02,180.77,1.01645512]
[1730217624988,5.08,181.02,180.76,5.08]
[1730217626102,5.08,181.02,180.77,1.01644104]
[1730217626688,6.3847,181.03,180.77,1.01644104]
[1730217626890,5.08,181.03,180.77,1.01644104]
[1730217627090,5.08,181.03,180.78,1.01627095]
[1730217627393,5.08,181.03,180.79,1.01627095]
[1730217627595,1.2349,181.04,180.8,1.01627095]
[1730217627796,6.2851,181.07,180.81,24.1401]
[1730217628002,1.2051,181.07,180.82,1.01613706]
[1730217628503,1.2051,181.07,180.83,1.01613706]
[1730217628793,1.2051,181.07,180.91,5.5281]
[1730217629093,1.2051,181.07,180.92,68.6208]
[1730217629285,1.2051,181.07,180.93,5.08]
[1730217629491,1.2051,181.07,180.93,10.6076]
[1730217629793,2.4295,181.12,180.93,5.08]
[1730217629991,2.4295,181.12,180.94,5.5273]
[1730217630194,2.4295,181.12,180.93,5.08]
[1730217630500,2.4295,181.12,180.95,5.5269]
[1730217630691,71.88310153,181.32,180.95,339.0]
[1730217630891,71.88310153,181.32,181.12,2.7608]
[1730217630892,2.7598,181.2,181.12,2.7608]
[1730217631288,2.7598,181.2,180.84,5.08]
[1730217631289,81.35,181.19,180.84,5.08]
[1730217631588,16.63,181.16,180.93,1.2271]
[1730217631794,16.63,181.15,180.93,1.2271]
[1730217631990,2.7618,181.07,180.93,1.2271]
[1730217632202,33.26,181.15,180.93,1.2271]
[1730217632203,8.8109,181.06,180.93,1.2271]
[1730217632389,8.8109,181.06,180.91,5.08]
[1730217632992,2.7621,181.05,180.96,2.7633]
[1730217633191,2.7621,181.05,180.91,5.08]
[1730217633392,8.8109,181.06,180.91,5.08]
[1730217633596,2.7622,181.04,180.96,2.7633]
[1730217634190,2.7626,181.02,180.94,2.7636]
[1730217634397,5.08,181.01,180.89,5.08]
[1730217635594,5.08,181.01,180.96,2.7633]
[1730217635795,5.08,181.01,180.89,5.08]
[1730217636209,5.08,181.01,180.92,2.7639]
[1730217636402,5.08,181.01,180.89,5.08]
[1730217636906,5.08,181.01,180.96,2.7633]
[1730217637803,5.08,181.01,180.89,5.08]
[1730217638004,21.71,181.01,180.82,1.2537]
[1730217638207,21.71,181.01,180.83,5.08]
[1730217638709,2.7634,180.97,180.83,5.08]
[1730217639006,7.6049,180.96,180.83,5.08]
[1730217639211,7.6049,180.96,180.84,1.2105]
[1730217640105,2.5249,180.96,180.84,1.2105]
[1730217640306,16.63,181.04,180.84,1.2105]
[1730217640508,7.5422,181.03,180.84,1.2105]
[1730217640913,5.08,181.02,180.84,1.2105]
[1730217641709,2.4622,181.03,180.85,1.01610322]
[1730217641912,2.4622,181.03,180.86,1.3081]
[1730217642112,2.4622,181.03,181.01,2.7626]
[1730217642309,2.4622,181.03,180.93,5.08]
[1730217642810,1.2515,181.03,180.93,5.08]
[1730217643411,1.2515,181.03,181.02,2.7625]
[1730217643711,1.2515,181.03,180.93,5.08]
[1730217644111,1.2515,181.03,181.02,2.7625]
[1730217644309,43.42275436,181.28,181.02,2.7625]
[1730217644310,16.63,181.26,181.02,5.08]
[1730217644615,2.5806,181.21,181.03,2.6278]
[1730217644802,1.2336,181.25,181.04,1.3176]
[1730217646214,1.2336,181.25,181.05,5.08]
[1730217646816,1.2336,181.25,181.18,2.76]
[1730217647020,1.2336,181.25,181.12,5.08]
[1730217647219,1.2336,181.25,181.15,2.7604]
[1730217647513,1.2336,181.25,181.11,5.08]
[1730217648516,1.2336,181.25,181.1,7.8412]
[1730217648820,1.2336,181.25,181.04,1.3176]
[1730217649011,1.2336,181.25,181.05,5.08]
[1730217649713,1.2336,181.25,181.15,2.7604]
[1730217649918,1.2336,181.25,181.1,5.08]
[1730217650221,1.2336,181.25,181.18,2.76]
[1730217650720,1.2336,181.25,181.1,5.08]
[1730217651021,6.3136,181.25,181.21,2.7595]
[1730217651222,1.2336,181.25,181.15,5.28]
[1730217651420,1.2336,181.25,181.22,2.7593]
[1730217651606,1.2336,181.25,181.15,5.28]
[1730217652209,5.28,181.26,181.15,5.28]
[1730217652621,5.28,181.26,181.24,2.759]
[1730217652811,5.28,181.26,181.15,5.28]
[1730217653212,5.28,181.29,181.25,2.759]
[1730217653412,5.28,181.3,181.25,2.759]
[1730217653817,5.28,181.3,181.18,5.28]
[1730217654214,5.28,181.29,181.18,5.28]
[1730217654419,5.28,181.29,181.24,2.7591]
[1730217654814,5.28,181.29,181.18,5.28]
[1730217655015,5.28,181.29,181.23,2.7592]
[1730217655210,5.28,181.29,181.18,5.28]
[1730217655416,5.28,181.29,181.23,2.7592]
[1730217655619,5.28,181.29,181.17,5.28]
[1730217656823,5.28,181.29,181.25,2.7589]
[1730217657221,5.28,181.29,181.17,5.28]
[1730217658017,5.28,181.29,181.25,2.7588]
[1730217659122,5.28,181.29,181.17,5.28]
[1730217659719,5.28,181.29,181.25,2.7589]
[1730217660322,5.28,181.29,181.2,2.7597]
[1730217660523,5.28,181.29,181.17,5.28]
[1730217660922,21.91,181.29,181.13,5.28]
[1730217661129,21.91,181.29,180.95,2.40214495]
[1730217661130,21.91,181.29,181.04,2.5503]
[1730217661317,2.7591,181.24,181.12,2.7609]
[1730217661523,25.6815,181.23,181.09,5.28]
[1730217661920,28.4408,181.23,181.18,2.7599]
[1730217662226,28.4408,181.23,181.09,5.28]
[1730217662227,25.6815,181.23,181.09,5.28]
[1730217663624,9.0515,181.23,181.09,5.28]
[1730217663816,9.0515,181.23,181.21,2.7595]
[1730217664132,9.0515,181.23,181.09,5.28]
[1730217664328,9.0515,181.23,181.06,5.28]
[1730217664536,2.7599,181.19,181.14,2.7605]
[1730217664828,5.28,181.18,181.14,2.7605]
[1730217665429,21.91,181.18,181.04,2.5303]
[1730217665727,21.91,181.18,180.98,6.5328]
[1730217666028,21.91,181.18,180.99,1.01522409]
[1730217666324,21.91,181.18,181.0,1.01522409]
[1730217666527,21.91,181.18,180.98,7.8297]
[1730217666723,21.91,181.18,180.99,1.0153086]
[1730217666921,21.91,181.18,180.96,5.5267]
[1730217667120,21.91,181.18,180.97,1.01540266]
[1730217667325,38.54,181.18,180.94,1.2969]
[1730217667528,38.54,181.18,180.89,5.28]
[1730217667831,33.26,181.16,180.9,1.01573924]
[1730217668031,33.26,181.16,180.89,5.28]
[1730217668032,33.26,181.16,180.91,1.01573924]
[1730217668229,33.26,181.16,180.89,5.28]
[1730217668527,16.63,181.16,180.86,2.5898]
[1730217668725,16.63,181.16,180.87,6.29589609]
[1730217668924,2.7628,181.01,180.87,5.28]
[1730217669127,7.7833,181.0,180.87,5.28]
[1730217669433,10.5461,181.0,180.95,2.7635]
[1730217669734,7.7833,181.0,180.87,5.28]
[1730217670036,7.7833,181.0,180.86,2.5898]
[1730217670326,2.7631,180.98,180.86,2.5898]
[1730217670532,0.9958,180.99,180.86,2.5898]
[1730217671336,5.28,180.98,180.86,2.5898]
[1730217671525,5.28,180.98,180.96,2.7633]
[1730217671720,5.28,180.98,180.86,2.5898]
[1730217673329,2.7624,181.03,180.97,2.7633]
[1730217673527,5.28,180.99,180.87,5.28]
[1730217673727,5.28,180.99,180.98,2.7631]
[1730217674725,5.28,181.0,180.92,2.764]
[1730217674925,1.2298,181.07,180.88,5.5293]
[1730217675126,1.2298,181.07,180.86,2.5898]
[1730217675127,5.28,181.06,180.89,5.28]
[1730217675321,5.28,181.06,181.05,2.762]
[1730217676036,5.28,181.06,180.96,2.4765]
[1730217676628,5.28,181.06,181.02,2.7624]
[1730217676834,5.28,181.06,180.95,5.28]
[1730217677632,5.28,181.06,181.05,2.762]
[1730217679156,5.28,181.1,181.09,2.7613]
[1730217679366,5.28,181.13,181.01,5.28]
[1730217679669,5.28,181.13,181.05,2.762]
[1730217679864,21.91,181.13,180.97,1.2434]
[1730217680069,21.91,181.13,180.97,6.5234]
[1730217680273,0.9974,181.12,180.97,6.5234]
[1730217681056,2.7614,181.1,181.05,2.762]
[1730217681247,1.2535,181.09,181.05,2.762]
[1730217681565,5.26,181.08,180.97,6.5234]
[1730217682669,1.2535,181.09,180.97,6.5234]
[1730217682858,6.5135,181.09,181.06,2.7618]
[1730217683061,6.5135,181.09,180.97,6.5234]
[1730217683571,6.5135,181.09,181.0,2.7627]
[1730217683772,6.5135,181.09,180.97,6.5234]
[1730217684161,6.5135,181.09,181.06,2.7617]
[1730217684359,5.26,181.09,180.97,6.5234]
[1730217685169,5.26,181.13,181.11,2.761]
[1730217685368,5.26,181.13,181.02,5.26]
[1730217685561,5.26,181.13,181.03,7.7637]
[1730217686165,5.26,181.13,181.12,2.761]
[1730217687058,5.26,181.13,181.03,7.7637]
[1730217687267,20.11098782,181.13,180.99,14.85098782]
[1730217687467,2.7612,181.11,180.99,20.11098782]
[1730217687657,14.85098782,181.1,180.97,1.2434]
[1730217687867,1.2124,181.09,180.98,5.26]
[1730217688056,5.26,181.08,181.05,2.7619]
[1730217688757,5.26,181.08,180.97,25.38964922]
[1730217688960,6.2569,181.08,180.97,25.38964922]
[1730217689265,30.40314922,181.08,180.94,29.40624922]
[1730217689862,33.16474922,181.08,180.94,29.40624922]
[1730217690467,33.16474922,181.08,181.03,2.7622]
[1730217691175,2.7618,181.07,181.03,2.7622]
[1730217691560,2.7618,181.07,180.98,24.14624922]
[1730217691764,6.2569,181.08,181.06,2.7618]
[1730217692067,6.2569,181.08,180.98,24.14624922]
[1730217692262,7.7505,181.09,181.08,2.7616]
[1730217692771,6.5381,181.09,181.08,2.7616]
[1730217693556,5.26,181.09,181.08,2.7616]
[1730217693747,5.26,181.12,181.05,24.14624922]
[1730217694342,5.26,181.14,181.05,24.14624922]
[1730217694943,5.26,181.14,181.11,2.7611]
[1730217696037,5.26,181.14,181.05,24.14624922]
[1730217696345,5.26,181.14,181.08,24.14624922]
[1730217696749,6.5772,181.16,181.08,24.14624922]
[1730217697263,6.5772,181.16,181.15,2.7605]
[1730217697451,1.2707,181.2,181.11,24.14624922]
[1730217697749,5.26,181.19,181.18,2.7599]
[1730217697943,5.26,181.19,181.11,24.14624922]
[1730217698141,5.26,181.19,181.08,24.14624922]
[1730217698947,5.26,181.19,181.05,5.26]
[1730217698948,5.26,181.19,181.14,24.14624922]
[1730217699146,5.26,181.19,181.11,24.14624922]
[1730217699853,5.26,181.21,181.11,24.14624922]
[1730217700046,5.26,181.21,181.14,24.14624922]
[1730217700251,5.26,181.21,181.18,2.76]
[1730217700449,5.26,181.21,181.14,24.14624922]
[1730217700645,5.26,181.21,181.19,2.7598]
[1730217700852,5.26,181.21,181.14,24.14624922]
[1730217701846,5.26,181.21,181.16,2.7603]
[1730217702149,21.89,181.21,181.11,24.14624922]
[1730217702553,2.7599,181.2,181.11,24.14624922]
[1730217702950,5.26,181.21,181.18,2.7599]
[1730217703149,5.26,181.21,181.11,24.14624922]
[1730217704252,5.26,181.21,181.14,24.14624922]
[1730217704455,5.26,181.21,181.16,2.7603]
[1730217704652,5.26,181.21,181.14,24.14624922]
[1730217705051,5.26,181.22,181.14,24.14624922]
[1730217705353,5.26,181.24,181.14,24.14624922]
[1730217705745,24.14624922,181.31,181.18,24.14624922]
[1730217706057,2.7587,181.27,181.24,2.7591]
[1730217706463,5.396986,181.31,181.18,24.14624922]
[1730217706753,5.26,181.3,181.24,24.14624922]
[1730217707351,5.26,181.3,181.28,2.7585]
[1730217708157,5.26,181.3,181.24,24.14624922]
[1730217708158,5.24,181.3,181.24,24.14624922]
[1730217708749,5.24,181.3,181.27,2.7586]
[1730217708950,5.24,181.3,181.25,14.83607825]
[1730217709353,5.24,181.3,181.29,2.7584]
[1730217709856,2.7567,181.41,181.32,2.7578]
[1730217710057,5.24,181.4,181.31,14.83607825]
[1730217710446,5.24,181.4,181.33,2.7577]
[1730217710447,7.9968,181.4,181.33,2.7577]
[1730217710657,5.24,181.4,181.31,14.83607825]
[1730217711049,3.5833,181.43,181.35,14.83607825]
[1730217711247,2.5865,181.43,181.35,14.83607825]
[1730217711449,2.5865,181.43,181.3,14.83607825]
[1730217711854,2.5865,181.43,181.28,7.7505]
[1730217711855,14.83607825,181.39,181.28,1.2579]
[1730217712050,8.07339362,181.38,181.28,2.7584]
[1730217712355,8.07339362,181.38,181.23,14.83607825]
[1730217712356,14.83607825,181.36,181.23,14.83607825]
[1730217712552,2.7584,181.3,181.25,2.7589]
[1730217712751,5.28,181.3,181.21,2.4705]
[1730217712950,5.28,181.3,181.21,1.2579]
[1730217713162,5.28,181.3,181.28,2.7585]
[1730217713663,5.28,181.3,181.23,14.83607825]
[1730217713958,5.28,181.34,181.26,14.83607825]
[1730217714761,1.2251,181.37,181.3,2.7582]
[1730217714762,5.28,181.35,181.3,2.7582]
[1730217714969,5.28,181.35,181.28,24.11968593]
[1730217715460,5.28,181.35,181.26,24.11968593]
[1730217716053,5.28,181.35,181.31,2.758]
[1730217716456,5.28,181.35,181.26,24.11968593]
[1730217716661,8.0376,181.35,181.3,2.7581]
[1730217716855,8.0376,181.35,181.26,24.11968593]
[1730217716856,5.28,181.35,181.26,24.11968593]
[1730217717767,8.0375,181.35,181.31,2.758]
[1730217717968,5.28,181.35,181.29,24.11968593]
[1730217718556,5.28,181.35,181.3,2.7581]
[1730217718869,5.28,181.35,181.29,24.11968593]
[1730217719068,5.28,181.35,181.3,2.7581]
[1730217719264,5.28,181.35,181.29,24.11968593]
[1730217719657,5.28,181.35,181.33,2.7578]
[1730217719971,5.28,181.35,181.29,24.11968593]
[1730217720174,5.28,181.35,181.31,2.758]
[1730217720362,5.28,181.35,181.26,24.11968593]
[1730217720670,5.26,181.34,181.28,2.7585]
[1730217720967,2.7578,181.33,181.26,24.11968593]
[1730217721266,24.11968593,181.43,181.29,24.11968593]
[1730217721571,2.7569,181.39,181.31,24.11968593]
[1730217721960,2.4914,181.44,181.35,24.11968593]
[1730217722463,2.4914,181.44,181.3,29.37968593]
[1730217722861,2.4914,181.44,181.3,24.11968593]
[1730217723059,2.4914,181.44,181.12,24.11968593]
[1730217723060,24.11968593,181.4,181.26,2.7588]
[1730217723262,24.11968593,181.31,181.13,1.3214]
[1730217723568,24.11968593,181.28,181.18,2.7599]
[1730217723766,6.32,181.27,181.13,24.11968593]
[1730217723964,24.11968593,181.26,181.13,24.11968593]
[1730217724363,24.11968593,181.26,181.13,25.44108593]
[1730217724761,2.76,181.19,181.13,28.20178593]
[1730217725072,6.32,181.21,181.12,2.4781]
[1730217725374,6.32,181.2,181.13,24.11968593]
[1730217725667,6.32,181.21,181.13,24.11968593]
[1730217725870,0.9979,181.29,181.19,24.11968593]
[1730217726063,6.32,181.29,181.22,24.11968593]
[1730217726269,9.0785,181.29,181.22,26.87898593]
[1730217726570,24.11968593,181.4,181.25,24.11968593]
[1730217726771,2.5054,181.38,181.25,24.11968593]
[1730217726965,24.11968593,181.37,181.22,1.324]
[1730217727669,2.5054,181.38,181.22,1.324]
[1730217727872,2.5054,181.38,181.26,24.11968593]
[1730217728266,2.7576,181.35,181.28,2.7585]
[1730217728468,6.32,181.34,181.28,2.7585]
[1730217728774,6.32,181.34,181.26,24.11968593]
[1730217729174,2.758,181.32,181.27,2.7587]
[1730217730178,9.0777,181.34,181.29,2.7583]
[1730217730370,6.32,181.34,181.29,2.7583]
[1730217731074,2.757,181.38,181.31,24.11968593]
[1730217731574,6.32,181.4,181.28,24.11968593]
[1730217731765,30.43968593,181.4,181.28,24.11968593]
[1730217732075,24.11968593,181.34,181.22,1.324]
[1730217732270,8.8085,181.33,181.22,1.324]
[1730217732667,8.8085,181.33,181.25,2.759]
[1730217733465,8.8085,181.33,181.21,2.4349]
[1730217733786,24.11968593,181.32,181.16,30.43968593]
[1730217734075,24.11968593,181.32,181.18,24.11968593]
[1730217734669,2.7591,181.25,181.18,24.11968593]
[1730217734869,2.7591,181.25,181.12,30.43968593]
[1730217734870,30.43968593,181.24,181.08,24.11968593]
[1730217735071,6.32,181.23,181.13,2.7607]
[1730217735375,2.7605,181.16,181.08,24.11968593]
[1730217735576,6.32,181.15,181.11,2.761]
[1730217735877,6.32,181.16,181.08,24.11968593]
[1730217736073,6.32,181.16,181.04,3.8043]
[1730217737881,1.2282,181.14,181.03,2.7623]
[1730217738081,2.7615,181.09,181.03,2.7623]
[1730217738282,1.2282,181.14,181.01,2.7626]
[1730217738283,6.32,181.08,181.01,2.7626]
[1730217738580,6.32,181.08,180.93,24.11968593]
[1730217738972,24.11968593,181.06,180.93,24.11968593]
[1730217739173,1.2935,181.05,180.93,24.11968593]
[1730217739385,1.2935,181.05,180.96,24.11968593]
[1730217739580,6.32,181.08,180.96,24.11968593]
[1730217739782,2.7619,181.07,180.96,24.11968593]
[1730217739976,59.64,181.1,180.99,24.11968593]
[1730217740284,6.32,181.09,181.01,24.11968593]
[1730217740481,6.32,181.09,181.05,2.762]
[1730217740672,59.66,181.16,181.05,2.762]
[1730217740673,20.14845198,181.3,181.08,48.23937186]
[1730217740875,20.14845198,181.3,181.05,9.0]
[1730217740876,2.759,181.25,181.06,2.5449]
[1730217741070,8.2,181.29,181.18,24.11968593]
[1730217741480,8.2,181.29,181.06,2.5449]
[1730217741481,32.31968593,181.29,181.15,24.11968593]
[1730217741787,24.11968593,181.26,181.12,24.11968593]
[1730217741985,24.11968593,181.24,181.11,2.761]
[1730217742185,24.11968593,181.24,181.09,24.11968593]
[1730217742387,59.66,181.25,181.12,24.11968593]
[1730217742979,59.66,181.25,181.11,24.11968593]
[1730217743283,24.11968593,181.24,181.08,24.11968593]
[1730217743484,25.42578593,181.24,181.08,24.11968593]
[1730217743679,25.42578593,181.24,181.11,24.11968593]
[1730217744680,25.42578593,181.24,181.14,2.7606]
[1730217744884,8.54,181.23,181.14,24.11968593]
[1730217745378,8.54,181.22,181.14,24.11968593]
[1730217746286,17.8607,181.31,181.17,24.11968593]
[1730217746287,1.2307,181.31,181.17,24.11968593]
[1730217746500,68.2,181.3,181.17,24.11968593]
[1730217746792,24.11968593,181.29,181.14,24.11968593]
[1730217746997,24.11968593,181.23,181.08,24.11968593]
[1730217747298,8.54,181.22,181.08,24.11968593]
[1730217747805,8.54,181.22,181.14,2.7607]
[1730217747806,1.2143,181.21,181.14,2.7607]
[1730217747981,8.54,181.22,181.14,24.11968593]
[1730217748493,8.54,181.22,181.18,2.76]
[1730217748696,0.9972,181.26,181.18,2.76]
[1730217748992,8.54,181.21,181.18,2.76]
[1730217749891,8.54,181.21,181.17,2.7601]
[1730217750292,8.54,181.21,181.11,24.11968593]
[1730217750492,8.54,181.21,181.15,2.7605]
[1730217750896,8.54,181.21,181.14,24.11968593]
[1730217751103,1.2143,181.29,181.18,2.76]
[1730217751104,8.54,181.2,181.18,2.76]
[1730217751403,8.54,181.19,181.18,2.76]
[1730217751599,8.54,181.19,181.18,2.7601]
[1730217755095,8.54,181.19,181.08,1.2945]
[1730217755096,8.54,181.19,181.15,2.7604]
[1730217755402,8.54,181.19,181.11,24.11968593]
[1730217755702,8.54,181.19,181.14,24.11968593]
[1730217755899,8.54,181.19,181.11,24.11968593]
[1730217756294,8.54,181.19,181.13,24.11968593]
[1730217756798,8.54,181.19,181.18,2.7601]
[1730217757101,8.54,181.19,181.13,24.11968593]
[1730217757306,8.54,181.19,181.17,2.7601]
[1730217757503,8.54,181.19,181.13,24.11968593]
[1730217757906,8.54,181.19,181.1,24.11968593]
[1730217759011,8.54,181.19,181.13,2.7607]
[1730217759303,8.54,181.19,181.08,1.2945]
[1730217759513,2.7602,181.17,181.13,2.7607]
[1730217759696,8.54,181.19,181.08,1.2945]
[1730217760195,24.11968593,181.18,181.08,1.2945]
[1730217760402,24.11968593,181.18,181.06,1.2442]
[1730217760403,24.11968593,181.16,181.06,1.2442]
[1730217760597,24.11968593,181.16,181.08,2.7615]
[1730217761300,59.64,181.17,181.1,2.7613]
[1730217761501,59.64,181.17,181.06,1.2442]
[1730217761701,2.7607,181.14,181.06,1.2442]
[1730217762500,2.7609,181.13,181.09,2.7613]
[1730217762696,8.2,181.12,181.09,2.7613]
[1730217763305,8.2,181.12,181.04,2.7621]
[1730217763502,2.7615,181.09,181.0,24.11968593]
[1730217763704,8.2,181.12,181.0,24.11968593]
[1730217763907,8.2,181.12,181.04,2.762]
[1730217764204,2.7617,181.08,181.0,24.11968593]
[1730217764505,8.2,181.07,181.0,24.11968593]
[1730217765395,8.2,181.07,180.97,26.58928593]
[1730217765805,8.2,181.07,180.97,2.4696]
[1730217766005,2.7622,181.04,180.97,2.4696]
[1730217766207,2.7622,181.04,181.0,2.7627]
[1730217766406,2.7626,181.02,180.91,24.11968593]
[1730217766608,7.88,181.01,180.91,24.11968593]
[1730217766913,7.88,181.0,180.94,24.11968593]
[1730217769010,7.88,181.0,180.97,24.11968593]
[1730217769213,59.66,181.04,181.0,2.7627]
[1730217769400,7.88,181.03,181.0,2.7627]
[1730217769708,1.3314,181.09,181.06,2.7618]
[1730217770006,7.88,181.08,181.02,24.11968593]
[1730217770407,7.88,181.08,181.03,2.7623]
[1730217770713,7.88,181.08,181.02,24.11968593]
[1730217771104,7.88,181.07,181.02,24.11968593]
[1730217772318,7.88,181.07,181.03,2.7623]
[1730217772613,7.88,181.07,181.02,24.11968593]
[1730217773301,7.88,181.1,181.05,24.11968593]
[1730217773504,0.9991,181.17,181.05,24.11968593]
[1730217773505,7.88,181.11,181.05,24.11968593]
[1730217773804,7.88,181.11,181.09,2.7614]
[1730217775011,7.88,181.11,180.96,1.2065]
[1730217775012,10.6412,181.11,181.02,24.11968593]
[1730217775217,7.88,181.11,180.99,24.11968593]
[1730217776006,2.7616,181.08,181.02,2.7624]
[1730217776213,2.7616,181.08,180.99,24.11968593]
[1730217777211,7.88,181.11,180.99,24.11968593]
[1730217777411,7.88,181.11,180.97,1.2845]
[1730217777412,7.88,181.11,181.02,24.11968593]
[1730217777802,7.88,181.11,180.97,1.2845]
[1730217777803,48.62968593,181.11,180.99,24.11968593]
[1730217778008,7.88,181.11,180.99,24.11968593]
[1730217778405,2.7616,181.08,180.99,24.11968593]
[1730217778810,7.88,181.11,180.99,24.11968593]
[1730217779011,2.7616,181.09,180.99,24.11968593]
[1730217779316,18.28656847,181.26,181.07,24.11968593]
[1730217779519,5.7686729,181.27,181.16,24.11968593]
[1730217779713,20.37911175,181.31,181.03,24.11968593]
[1730217779714,1.2381,181.31,181.19,24.11968593]
[1730217779912,9.1181,181.31,181.19,24.11968593]
[1730217780914,1.2381,181.31,181.23,2.7593]
[1730217781218,7.88,181.3,181.21,24.11968593]